lending/lending_fUSD_20260306
["ID","MTS","AMOUNT","RATE_DAILY","PERIOD"]
[407788795,1772802641476,-1000.0,0.000199,7]
[407788796,1772802641485,-1000.0,0.000199,7]
[407788797,1772802641494,-1000.0,0.000199,7]
[407788798,1772802641504,-1000.0,0.000199,7]
[407788799,1772802641513,-1000.0,0.000199,7]
[407788800,1772802641522,-1000.0,0.000199,7]
[407788801,1772802641532,-1000.0,0.000199,7]
[407788802,1772802641541,-1000.0,0.000199,7]
[407788803,1772802641550,-1000.0,0.000199,7]
[407788804,1772802641559,-1000.0,0.000199,7]
[407788805,1772802641568,-1000.0,0.000199,7]
[407788806,1772802641577,-1000.0,0.000199,7]
[407788807,1772802641586,-1000.0,0.000199,7]
[407788808,1772802641595,-1000.0,0.000199,7]
[407788809,1772802641604,-1000.0,0.000199,7]
[407788810,1772802641614,-1000.0,0.000199,7]
[407788811,1772802641623,-1000.0,0.000199,7]
[407788812,1772802641632,-1000.0,0.000199,7]
[407788813,1772802641642,-1000.0,0.000199,7]
[407788814,1772802641651,-1000.0,0.000199,7]
[407788815,1772802641661,-1000.0,0.000199,7]
[407788816,1772802641671,-7686.48551237,0.000199,2]
[407788817,1772802641680,-1054.43000001,0.000199,7]
[407788818,1772802641690,-8935.59203485,0.000199,2]
[407788819,1772802641700,-25000.0,0.000199,3]
[407788820,1772802641710,-692.9360572,0.000199,2]
[407788821,1772802641719,-1058.11044493,0.000199,2]
[407788822,1772802641728,-3558.61014686,0.000199,2]
[407788823,1772802641737,-157.40983265,0.000199,2]
[407788824,1772802641746,-161.55371857,0.0001993,2]
[407788825,1772802641756,-11842.22879035,0.0001995,15]
[407788826,1772802641765,-329.31983563,0.0001997,2]
[407788827,1772802641775,-500.0,0.00019973,2]
[407788828,1772802641784,-500.0,0.00019973,2]
[407788829,1772802641793,-494.64624274,0.00019973,2]
[407788830,1772802641803,-500.0,0.00019973,2]
[407788831,1772802641812,-500.0,0.00019973,2]
[407788832,1772802641822,-150.0,0.00019973,2]
[407788833,1772802641831,-446.12402339,0.00019973,2]
[407788834,1772802641840,-182.43846544,0.00019973,2]
[407788835,1772802641849,-500.0,0.00019973,2]
[407788836,1772802641859,-119258.6679168,0.0001998,2]
[407788837,1772802641868,-329.31983563,0.0001999,2]
[407788838,1772802641877,-151.0,0.00019997,2]
[407788839,1772802641888,-300.0,0.00019999,2]
[407788840,1772802641897,-666.0,0.00019999,2]
[407788841,1772802641906,-300.0,0.00019999,2]
[407788842,1772802641916,-500.0,0.00019999,2]
[407788843,1772802641926,-2000.0,0.0002,2]
[407788844,1772802641937,-333.11,0.0002,7]
[407788845,1772802641946,-9578921.02591803,0.0002,2]
[407788846,1772802641957,-1000.0,0.0002,2]
[407788847,1772802641966,-1474.82784586,0.0002,5]
[407788848,1772802641977,-294748.53385853,0.0002,2]
[407788857,1772802643344,-647.05801873,0.0002,2]
[407788858,1772802643356,-347.053942,0.0002,2]
[407788859,1772802643415,-1135.96567531,0.0002,2]
[407788860,1772802643438,-1581.91527348,0.0002,2]
[407788861,1772802644718,-73802.52430877,0.0002,2]
[407788862,1772802644747,-34969.62854458,0.0002,2]
[407788868,1772802645494,-268.74096126,0.00016131,2]
[407788869,1772802645506,-3782.84481682,0.0002,2]
[407788870,1772802645557,-1908.95357177,0.0002,2]
[407788871,1772802646279,-494.61771879,0.000196,2]
[407788872,1772802646585,-542.55311237,0.000196,2]
[407788873,1772802646595,-7086.95930369,0.0002,2]
[407788874,1772802646606,-651.98542784,0.0002,2]
[407788875,1772802646651,-8505.31342312,0.0002,2]
[407788880,1772802719082,214.11973246,0.00014,2]
[407788881,1772802719107,284.289031,0.00014,2]
[407788882,1772802882244,-20.59123654,0.00014,2]
[407788883,1772802882272,-514.0,0.00014,2]
[407788884,1772802882299,-510.0,0.00014,2]
[407788885,1772802882330,-1600.0,0.00014225,2]
[407788886,1772802882359,-684.6,0.00014225,2]
[407788887,1772802993587,-220.04,0.00013,2]
[407788888,1772803047479,351.71710431,0.00012,2]
[407788890,1772803133449,667.24,7.246e-05,2]
[407788891,1772803134126,667.24,7.627e-05,2]
[407788892,1772803134243,667.24,8.008e-05,2]
[407788893,1772803134444,667.24,8.39e-05,2]
[407788894,1772803134583,667.24,8.771e-05,2]
[407788895,1772803134721,667.24,9.152e-05,2]
[407788896,1772803134866,667.24,9.534e-05,2]
[407788897,1772803135004,667.24,9.915e-05,2]
[407788898,1772803135149,667.24,0.00010296,2]
[407788899,1772803135306,667.24,0.00010678,2]
[407788900,1772803135528,667.24,0.00011059,2]
[407788901,1772803135779,667.24,0.0001144,2]
[407788902,1772803135961,667.24,0.00011822,2]
[407788903,1772803136410,534.09289569,0.00012203,2]
[407788904,1772803136434,133.14710431,0.00012203,2]
[407788905,1772803136619,667.24,0.00012584,2]
[407788906,1772803136821,667.24,0.00012966,2]
[407788908,1772803300611,-260.0,0.00013347,2]
[407788909,1772803349092,208.36416367,0.00012,2]
[407789004,1772803537672,162.0,0.00013347,2]
[407789005,1772803576593,-667.24,0.00013347,2]
[407789006,1772803594846,-250.0,0.00013424,2]
[407789010,1772803610285,-226.62346741,0.000135,2]
[407789011,1772803610313,-200.0,0.00013657,2]
[407789012,1772803610343,-667.24,0.00013729,2]
[407789013,1772803610371,-300.0,0.00013948,2]
[407789014,1772803610400,-1200.0,0.00013948,2]
[407789015,1772803610429,-300.0,0.00013948,2]
[407789016,1772803610456,-1936.98514067,0.00013949,2]
[407789017,1772803613067,-338.31278384,0.00013949,2]
[407789018,1772803613094,-606.55443232,0.00013949,2]
[407789019,1772803616181,-1889.73443232,0.00013949,2]
[407789020,1772803616271,-3013.9034901,0.00013949,2]
[407789021,1772803619080,-3206.63764526,0.00013949,2]
[407789022,1772803619111,-500.0,0.0001395,2]
[407789028,1772803622605,300.0,0.0001395,2]
[407789030,1772803630153,-546.0,0.00014,2]
[407789031,1772803630173,-186.2548355,0.00014039,2]
[407789035,1772803649089,295.25808088,0.00012,2]
[407789044,1772803762111,-712.0,0.00014,2]
[407789045,1772803762131,-323.31091499,0.0001401,2]
[407789046,1772803762151,-250.0,0.0001402,2]
[407789047,1772803762185,-313.7451645,0.00014039,2]
[407789048,1772803762212,-259.47,0.00014054,2]
[407789049,1772803762240,-667.24,0.0001411,2]
[407789050,1772803762260,-1871.5005253,0.00014173,2]
[407789051,1772803762280,-300.0,0.00014225,2]
[407789052,1772803762300,-200.0,0.00014225,2]
[407789053,1772803762321,-5183.0329,0.00014226,2]
[407789054,1772803773087,-5112.14551717,0.00014226,2]
[407789055,1772803774397,-1412.24875749,0.00014226,2]
[407789069,1772803831792,-290.05642929,0.00014,2]
[407789070,1772803831804,-255.94357071,0.00014,2]
[407789071,1772803831813,-265.0,0.00014,2]
[407789072,1772803831823,-82.89878526,0.00014112,2]
[407789073,1772803831834,-517.10121474,0.00014112,2]
[407789074,1772803831844,-300.0,0.00014225,2]
[407789076,1772803831853,-300.0,0.00014225,2]
[407789078,1772803831862,-1200.0,0.00014225,2]
[407789080,1772803831872,-300.0,0.00014225,2]
[407789082,1772803831881,-150.0,0.00014225,2]
[407789084,1772803831890,-300.0,0.00014225,2]
[407789086,1772803831900,-293176.37188123,0.00014226,2]
[407789090,1772803832422,-21640.58752705,0.00014226,2]
[407789091,1772803832455,-872.66531044,0.00014226,2]
[407789092,1772803832535,-596.61311656,0.00014226,2]
[407789099,1772803839430,-31598.88483791,0.00014226,2]
[407789100,1772803839442,-1148.40568961,0.00014226,2]
[407789102,1772803839453,-1916.96129794,0.00014226,2]
[407789106,1772803839526,-4656.4831646,0.00014226,2]
[407789107,1772803839535,-600.0,0.00014243,2]
[407789108,1772803839544,-500.0,0.00014273,2]
[407789109,1772803839553,-500.0,0.00014273,2]
[407789110,1772803839563,-500.18261012,0.00014273,2]
[407789111,1772803839573,-500.0,0.00014273,2]
[407789112,1772803839584,-219.32528239,0.00014273,2]
[407789113,1772803839594,-407.46862187,0.00014273,2]
[407789114,1772803839603,-500.0,0.00014273,2]
[407789115,1772803839613,-500.0,0.00014273,2]
[407789116,1772803839623,-240.12890457,0.00014273,2]
[407789117,1772803839632,-500.0,0.00014273,2]
[407789118,1772803839641,-500.0,0.00014273,2]
[407789119,1772803839650,-500.0,0.00014273,2]
[407789120,1772803839661,-500.0,0.00014273,2]
[407789121,1772803839674,-500.0,0.00014273,2]
[407789122,1772803839683,-500.0,0.00014273,2]
[407789123,1772803839692,-500.0,0.00014273,2]
[407789124,1772803839702,-501.14462458,0.00014273,2]
[407789125,1772803839711,-500.0,0.00014273,2]
[407789126,1772803839721,-500.0,0.00014273,2]
[407789127,1772803839731,-167.11665281,0.00014273,2]
[407789128,1772803839740,-167.13661669,0.00014273,2]
[407789129,1772803839749,-167.08473967,0.00014273,2]
[407789130,1772803839758,-667.24,0.00014491,2]
[407789131,1772803839767,-16085.9654557,0.00014589,2]
[407789132,1772803839777,-3223.17706761,0.00014682,2]
[407789133,1772803839786,-201.02283198,0.00014682,2]
[407789134,1772803839795,-1365.63140924,0.00014682,2]
[407789135,1772803839805,-209.48,0.00014682,2]
[407789136,1772803839814,-4000.0,0.0001469,2]
[407789137,1772803839823,-28181.0,0.000148,2]
[407789138,1772803839832,-500.0,0.00014821,2]
[407789139,1772803839841,-500.0,0.00014821,2]
[407789140,1772803839850,-500.0,0.00014821,2]
[407789141,1772803839859,-500.0,0.00014821,2]
[407789142,1772803839868,-1000.0,0.00014821,2]
[407789143,1772803839877,-1000.0,0.00014821,2]
[407789144,1772803839887,-500.0,0.00014821,2]
[407789145,1772803839896,-559.0,0.00014873,2]
[407789146,1772803839905,-302.0,0.00014894,2]
[407789147,1772803839914,-500.0,0.00014952,2]
[407789148,1772803839924,-150.0,0.00014952,2]
[407789149,1772803839933,-209.49,0.00014956,2]
[407789150,1772803839942,-151.0,0.00014991,2]
[407789151,1772803839951,-151.0,0.00014991,2]
[407789153,1772803839960,-151.0,0.00014991,2]
[407789155,1772803839971,-151.0,0.00014991,2]
[407789157,1772803839980,-151.0,0.00014991,2]
[407789158,1772803839990,-151.0,0.00014991,2]
[407789159,1772803839998,-151.0,0.00014991,2]
[407789160,1772803840008,-151.0,0.00014991,2]
[407789161,1772803840017,-151.0,0.00014991,2]
[407789162,1772803840026,-151.0,0.00014991,2]
[407789163,1772803840035,-151.0,0.00014991,2]
[407789164,1772803840044,-6660.5937,0.00014999,2]
[407789165,1772803840053,-551.2469183,0.00015,2]
[407789166,1772803840064,-1314.1942025,0.00015,2]
[407789167,1772803840074,-1356.65330897,0.00015,2]
[407789168,1772803840083,-1182.7518092,0.00015,2]
[407789169,1772803840092,-153.22515255,0.00015,2]
[407789170,1772803840101,-159.77629539,0.00015,2]
[407789171,1772803840110,-179.16064084,0.00015,2]
[407789172,1772803840119,-199.65636282,0.00015,2]
[407789173,1772803840129,-157.40983265,0.00015,2]
[407789174,1772803840138,-872.11184926,0.00015,2]
[407789175,1772803840147,-3558.61014688,0.00015,2]
[407789176,1772803840157,-1448.5564,0.00015041,2]
[407789177,1772803840166,-4000.0,0.00015057,2]
[407789178,1772803840175,-589.03508066,0.00015073,2]
[407789179,1772803840184,-573.58002767,0.00015073,2]
[407789180,1772803840193,-500.0,0.00015073,2]
[407789181,1772803840203,-500.0,0.00015073,2]
[407789182,1772803840212,-164.89685656,0.00015073,2]
[407789183,1772803840226,-500.12727946,0.00015073,2]
[407789184,1772803840235,-500.07952757,0.00015073,2]
[407789185,1772803840245,-500.0,0.00015073,2]
[407789186,1772803840255,-500.0,0.00015073,2]
[407789187,1772803840264,-500.0,0.00015073,2]
[407789188,1772803840273,-500.0,0.00015073,2]
[407789189,1772803840283,-500.0,0.00015073,2]
[407789190,1772803840292,-500.0,0.00015073,2]
[407789191,1772803840302,-500.0,0.00015073,2]
[407789192,1772803840311,-500.0,0.00015073,2]
[407789193,1772803840320,-500.0,0.00015073,2]
[407789194,1772803840330,-500.0,0.00015073,2]
[407789195,1772803840339,-500.0,0.00015073,2]
[407789196,1772803840348,-500.0,0.00015073,2]
[407789197,1772803840357,-150.0,0.00015073,2]
[407789198,1772803840368,-387.89226844,0.00015081,2]
[407789199,1772803840377,-641.66503342,0.00015081,2]
[407789200,1772803840386,-1978.60898558,0.00015081,2]
[407789201,1772803840396,-219.54655709,0.0001509,2]
[407789202,1772803840406,-500.0,0.00015091,2]
[407789203,1772803840416,-255.39371409,0.00015091,2]
[407789204,1772803840425,-200.0,0.00015091,2]
[407789205,1772803840435,-500.0,0.00015091,2]
[407789206,1772803840444,-500.0,0.00015091,2]
[407789207,1772803840453,-500.0,0.00015091,2]
[407789208,1772803840463,-500.0,0.00015091,2]
[407789209,1772803840475,-500.0,0.00015091,2]
[407789210,1772803840485,-500.0,0.00015091,2]
[407789211,1772803840495,-500.0,0.00015091,2]
[407789212,1772803840504,-500.0,0.00015091,2]
[407789213,1772803840514,-500.0,0.00015091,2]
[407789214,1772803840523,-500.0,0.00015091,2]
[407789215,1772803840534,-151.0,0.00015091,2]
[407789216,1772803840543,-500.0,0.00015091,2]
[407789218,1772803840552,-151.0,0.00015091,2]
[407789219,1772803840562,-151.0,0.00015091,2]
[407789220,1772803840574,-151.0,0.00015091,2]
[407789221,1772803840584,-151.0,0.00015091,2]
[407789222,1772803840593,-151.0,0.00015091,2]
[407789223,1772803840603,-151.0,0.00015091,2]
[407789224,1772803840613,-151.0,0.00015091,2]
[407789225,1772803840622,-151.0,0.00015091,2]
[407789226,1772803840631,-151.0,0.00015091,2]
[407789227,1772803840641,-151.0,0.00015091,2]
[407789228,1772803840652,-151.0,0.00015091,2]
[407789229,1772803840661,-151.0,0.00015091,2]
[407789230,1772803840671,-151.0,0.00015091,2]
[407789231,1772803840680,-151.0,0.00015091,2]
[407789232,1772803840689,-151.0,0.00015091,2]
[407789233,1772803840699,-151.0,0.00015091,2]
[407789234,1772803840708,-151.0,0.00015091,2]
[407789235,1772803840720,-151.0,0.00015091,2]
[407789236,1772803840729,-151.0,0.00015091,2]
[407789237,1772803840738,-151.0,0.00015091,2]
[407789239,1772803840748,-151.0,0.00015097,2]
[407789241,1772803840757,-500.0,0.00015099,2]
[407789242,1772803840767,-500.0,0.00015099,2]
[407789243,1772803840776,-500.0,0.00015099,2]
[407789244,1772803840785,-500.0,0.00015099,2]
[407789245,1772803840794,-500.0,0.00015099,2]
[407789246,1772803840804,-500.0,0.00015099,2]
[407789247,1772803840813,-500.0,0.00015099,2]
[407789248,1772803840822,-500.0,0.00015099,2]
[407789249,1772803840839,-500.0,0.00015099,2]
[407789250,1772803840852,-500.0,0.00015099,2]
[407789251,1772803840861,-500.0,0.00015099,2]
[407789252,1772803840871,-500.0,0.00015099,2]
[407789253,1772803840881,-500.0,0.00015099,2]
[407789254,1772803840890,-500.0,0.00015099,2]
[407789255,1772803840900,-500.0,0.00015099,2]
[407789256,1772803840909,-637.44948244,0.00015099,2]
[407789257,1772803840920,-1177.85669876,0.00015099,5]
[407789258,1772803840929,-500.0,0.00015099,2]
[407789259,1772803840939,-500.0,0.00015099,2]
[407789260,1772803840948,-500.0,0.00015099,2]
[407789261,1772803840957,-500.0,0.00015099,2]
[407789262,1772803840967,-500.0,0.00015099,2]
[407789263,1772803840976,-500.0,0.00015099,2]
[407789264,1772803840986,-500.0,0.00015099,2]
[407789265,1772803840995,-500.0,0.00015099,2]
[407789266,1772803841005,-500.0,0.00015099,2]
[407789267,1772803841014,-500.0,0.00015099,2]
[407789268,1772803841023,-500.0,0.00015099,2]
[407789269,1772803841033,-500.0,0.00015099,2]
[407789270,1772803841042,-559.66624358,0.00015099,2]
[407789271,1772803841052,-500.0,0.00015099,2]
[407789272,1772803841062,-513.82971937,0.00015099,2]
[407789273,1772803841073,-551.6181156,0.00015099,2]
[407789274,1772803841085,-500.0,0.00015099,2]
[407789275,1772803841095,-500.0,0.00015099,2]
[407789276,1772803841105,-500.0,0.00015099,2]
[407789277,1772803841114,-500.0,0.00015099,2]
[407789278,1772803841124,-500.0,0.00015099,2]
[407789279,1772803841133,-500.0,0.00015099,2]
[407789280,1772803841142,-500.0,0.00015099,2]
[407789281,1772803841152,-500.0,0.00015099,2]
[407789282,1772803841162,-500.0,0.00015099,2]
[407789283,1772803841171,-193.3943989,0.00015099,2]
[407789284,1772803841181,-500.0,0.00015099,2]
[407789285,1772803841190,-500.0,0.00015099,2]
[407789286,1772803841201,-500.0,0.00015099,2]
[407789287,1772803841210,-500.0,0.00015099,2]
[407789288,1772803841220,-500.0,0.00015099,2]
[407789289,1772803841229,-500.0,0.00015099,2]
[407789290,1772803841238,-500.0,0.00015099,2]
[407789291,1772803841248,-500.0,0.00015099,2]
[407789292,1772803841257,-361.46682815,0.00015099,2]
[407789293,1772803841267,-500.0,0.00015099,2]
[407789294,1772803841276,-500.0,0.00015099,2]
[407789295,1772803841286,-500.0,0.00015099,2]
[407789296,1772803841295,-274.62,0.00015099,2]
[407789297,1772803841305,-500.0,0.00015099,2]
[407789298,1772803841314,-500.0,0.00015099,2]
[407789299,1772803841324,-500.0,0.00015099,2]
[407789300,1772803841333,-500.0,0.00015099,2]
[407789301,1772803841343,-500.0,0.00015099,2]
[407789302,1772803841352,-500.0,0.00015099,2]
[407789303,1772803841362,-200.0,0.00015099,2]
[407789304,1772803841371,-412.33965512,0.00015099,2]
[407789305,1772803841380,-500.0,0.00015099,2]
[407789306,1772803841390,-500.0,0.00015099,2]
[407789307,1772803841400,-500.0,0.00015099,2]
[407789308,1772803841409,-500.0,0.00015099,2]
[407789309,1772803841419,-312.93337313,0.00015099,2]
[407789310,1772803841428,-276.59093936,0.00015099,2]
[407789311,1772803841437,-500.0,0.00015099,2]
[407789312,1772803841447,-500.0,0.00015099,2]
[407789313,1772803841456,-475.04189188,0.00015099,2]
[407789314,1772803841465,-193.61365755,0.00015099,2]
[407789315,1772803841478,-2500000.0,0.000151,2]
[407789316,1772803841487,-225.42379336,0.00015181,2]
[407789317,1772803841497,-5532.0,0.000152,3]
[407789318,1772803841507,-301.79912313,0.00015309,2]
[407789319,1772803841516,-500.0,0.00015324,2]
[407789320,1772803841526,-500.0,0.00015324,2]
[407789321,1772803841535,-500.0,0.00015324,2]
[407789322,1772803841546,-500.0,0.00015324,2]
[407789323,1772803841555,-497.49770464,0.00015324,2]
[407789324,1772803841564,-500.0,0.00015324,2]
[407789325,1772803841575,-500.0,0.00015324,2]
[407789326,1772803841588,-500.0,0.00015324,2]
[407789327,1772803841598,-499.50490111,0.00015324,2]
[407789328,1772803841607,-554.58,0.00015324,2]
[407789329,1772803841618,-554.58,0.00015324,2]
[407789330,1772803841627,-554.58,0.00015324,2]
[407789331,1772803841637,-554.58,0.00015324,2]
[407789332,1772803841647,-554.58,0.00015324,2]
[407789333,1772803841657,-554.58,0.00015324,2]
[407789334,1772803841667,-554.58,0.00015324,2]
[407789335,1772803841676,-554.58,0.00015324,2]
[407789336,1772803841685,-554.58,0.00015324,2]
[407789337,1772803841695,-554.58,0.00015324,2]
[407789338,1772803841704,-300.0,0.00015344,2]
[407789339,1772803841714,-540.75623666,0.00015345,2]
[407789340,1772803841728,-500.0,0.00015347,2]
[407789341,1772803841737,-255.0,0.00015349,2]
[407789342,1772803841747,-1500.0,0.00015368,2]
[407789343,1772803841756,-500.0,0.00015368,2]
[407789344,1772803841765,-3998.76322387,0.000154,2]
[407789346,1772803841774,-250.0,0.000154,2]
[407789347,1772803841788,-5000.0,0.000154,2]
[407789348,1772803841797,-300.0,0.000154,2]
[407789349,1772803841807,-300.27779023,0.000154,2]
[407789350,1772803841816,-250.0,0.000154,2]
[407789351,1772803841826,-600.0,0.000154,2]
[407789352,1772803841835,-300.0,0.000154,2]
[407789353,1772803841845,-5000.0,0.000154,2]
[407789354,1772803841854,-250.0,0.000154,2]
[407789355,1772803841864,-600.0,0.000154,2]
[407789356,1772803841873,-193.0,0.000154,2]
[407789357,1772803841883,-203.71480102,0.000154,2]
[407789358,1772803841892,-4000.0,0.00015424,2]
[407789359,1772803841901,-420.0,0.00015581,2]
[407789360,1772803841912,-185.0,0.00015581,2]
[407789361,1772803841922,-300.0,0.00015581,2]
[407789362,1772803841932,-5532.0,0.000156,5]
[407789363,1772803841943,-297.57,0.00015611,2]
[407789364,1772803841953,-1000.0,0.00015621,2]
[407789365,1772803841963,-500.0,0.00015621,2]
[407789366,1772803841975,-1000.0,0.00015621,2]
[407789367,1772803841985,-1000.0,0.00015621,2]
[407789368,1772803841995,-1000.0,0.00015621,2]
[407789369,1772803842004,-1000.0,0.00015621,2]
[407789370,1772803842015,-1000.0,0.00015621,2]
[407789371,1772803842024,-1000.0,0.00015621,2]
[407789372,1772803842034,-1000.0,0.00015621,2]
[407789373,1772803842043,-530.88059829,0.00015621,2]
[407789374,1772803842052,-556.1229892,0.00015621,2]
[407789375,1772803842062,-1000.0,0.00015621,2]
[407789376,1772803842071,-449.5306254,0.00015621,2]
[407789377,1772803842080,-450.0,0.00015621,2]
[407789378,1772803842090,-200.0,0.00015639,2]
[407789379,1772803842099,-1680.0,0.00015648,2]
[407789380,1772803842108,-4000.0,0.00015792,2]
[407789381,1772803842118,-244.0,0.0001581,2]
[407789382,1772803842127,-150.0,0.000159,2]
[407789383,1772803842136,-150.0,0.000159,2]
[407789384,1772803842146,-150.0,0.000159,2]
[407789385,1772803842155,-150.0,0.000159,2]
[407789386,1772803842166,-200.72181509,0.000159,2]
[407789387,1772803842176,-2000.0,0.00015916,2]
[407789388,1772803842185,-5000.0,0.0001596,2]
[407789389,1772803842195,-1600.0,0.00016003,2]
[407789390,1772803842205,-641.66503342,0.00016045,2]
[407789391,1772803842215,-4000.0,0.00016159,2]
[407789392,1772803842227,-500.0,0.00016164,2]
[407789393,1772803842236,-1500.0,0.00016168,2]
[407789394,1772803842246,-1500.0,0.00016168,2]
[407789395,1772803842256,-1500.0,0.00016168,2]
[407789396,1772803842265,-1500.0,0.00016168,2]
[407789397,1772803842274,-1500.0,0.00016168,2]
[407789398,1772803842284,-1500.0,0.00016168,2]
[407789399,1772803842294,-1500.0,0.00016168,2]
[407789400,1772803842303,-237.29585287,0.00016187,2]
[407789401,1772803842313,-2000.0,0.000163,2]
[407789402,1772803842322,-2000.0,0.000164,2]
[407789403,1772803842332,-2500.0,0.00016464,2]
[407789404,1772803842342,-500.0,0.00016466,2]
[407789405,1772803842352,-500.0,0.00016493,2]
[407789406,1772803842361,-2000.0,0.000165,2]
[407789407,1772803842371,-2000.0,0.000165,2]
[407789408,1772803842380,-433.0,0.00016558,2]
[407789409,1772803842390,-2000.0,0.000166,2]
[407789410,1772803842400,-2000.0,0.000166,2]
[407789411,1772803842410,-2000.0,0.000167,2]
[407789412,1772803842420,-2000.0,0.000167,2]
[407789413,1772803842429,-2000.0,0.00016716,2]
[407789414,1772803842439,-489.71509886,0.00016716,2]
[407789415,1772803842449,-2000.0,0.00016716,2]
[407789416,1772803842459,-2000.0,0.00016716,2]
[407789417,1772803842468,-189.44,0.0001679,2]
[407789418,1772803842480,-2000.0,0.000168,2]
[407789419,1772803842489,-2000.0,0.000168,2]
[407789420,1772803842499,-150.0,0.0001683,14]
[407789421,1772803842508,-2000.0,0.000169,2]
[407789422,1772803842518,-2000.0,0.000169,2]
[407789423,1772803842527,-2000.0,0.000169,2]
[407789424,1772803842536,-2000.0,0.000169,2]
[407789425,1772803842546,-2000.0,0.000169,2]
[407789426,1772803842555,-182.80013699,0.00016917,2]
[407789427,1772803842564,-1500.0,0.00017,2]
[407789428,1772803842578,-2800.840232,0.00017,2]
[407789429,1772803842587,-179.45599622,0.00017,2]
[407789430,1772803842599,-194.11,0.00017,2]
[407789431,1772803842608,-200.0,0.00017,2]
[407789432,1772803842618,-641.66503342,0.00017009,2]
[407789433,1772803842627,-3000.0,0.00017012,2]
[407789434,1772803842636,-189.44,0.0001706,2]
[407789435,1772803842648,-587.0,0.00017066,2]
[407789436,1772803842658,-2351.0,0.00017213,2]
[407789437,1772803842668,-2500.0,0.00017264,2]
[407789438,1772803842677,-2500.0,0.00017264,2]
[407789439,1772803842687,-546.47179689,0.00017264,2]
[407789440,1772803842696,-189.44,0.0001733,2]
[407789442,1772803842707,-387.89226843,0.00017491,2]
[407789443,1772803842717,-18580.62,0.0001751,7]
[407789445,1772803842729,-160.0,0.0001751,7]
[407789447,1772803842739,-1858.06,0.0001751,7]
[407789449,1772803842750,-3500.0,0.0001756,2]
[407789451,1772803842759,-189.44,0.000176,2]
[407789453,1772803842768,-500.0,0.00017671,2]
[407789455,1772803842777,-500.0,0.00017699,2]
[407789458,1772803842786,-1600.0,0.00017781,2]
[407789459,1772803842796,-800.0,0.00017808,2]
[407789460,1772803842806,-3000.0,0.00017812,2]
[407789461,1772803842816,-1027.87464689,0.00017812,2]
[407789462,1772803842826,-736.0,0.00017867,2]
[407789463,1772803842837,-189.44,0.0001787,2]
[407789464,1772803842846,-500.0,0.00017916,2]
[407789465,1772803842856,-641.66503342,0.00017972,2]
[407789466,1772803842865,-13935.47,0.00018035,7]
[407789467,1772803842874,-1393.55,0.00018035,7]
[407789468,1772803842885,-228.32,0.00018095,2]
[407789469,1772803842895,-500.0,0.00018108,2]
[407789470,1772803842904,-189.44,0.0001814,2]
[407789471,1772803842913,-225.42379336,0.00018251,2]
[407789472,1772803842923,-1000.0,0.0001836,2]
[407789473,1772803842933,-2803.0,0.000184,2]
[407789474,1772803842942,-189.44,0.0001841,2]
[407789475,1772803842952,-9290.31,0.00018561,7]